[Event "Titled Tuesday Blitz August 23 Early 2022"]
[White "Levitskiy, Andrey"]
[Black "Chigaev, Maksim"]
[WhiteFideId "14132885"]
[BlackFideId "4108116"]
[WhiteElo "2293"]
[BlackElo "2487"]
[Result "0-1"]
[Round "02"]
[TimeControl "180+1"]
[Date "2022.08.23"]
[WhiteClock "0:00:27"]
[BlackClock "0:01:48"]

1. e4 {[%clk 0:03:00]}  c5 {[%clk 0:02:59]} 2. Nf3 {[%clk 0:02:58]}  d6 {[%clk 0:02:58]} 3. d4 {[%clk 0:02:58]}  cxd4 {[%clk 0:02:59]} 4. Nxd4 {[%clk 0:02:58]}  Nf6 {[%clk 0:03:00]} 5. Nc3 {[%clk 0:02:58]}  a6 {[%clk 0:02:59]} 6. h3 {[%clk 0:02:48]}  e6 {[%clk 0:02:59]} 7. g4 {[%clk 0:02:47]}  h6 {[%clk 0:02:59]} 8. Bg2 {[%clk 0:02:44]}  Be7 {[%clk 0:02:59]} 9. Be3 {[%clk 0:02:43]}  Nc6 {[%clk 0:02:57]} 10. f4 {[%clk 0:02:42]}  Nd7 {[%clk 0:02:49]} 11. O-O {[%clk 0:02:17]}  Nxd4 {[%clk 0:02:47]} 12. Bxd4 {[%clk 0:02:16]}  e5 {[%clk 0:02:48]} 13. Be3 {[%clk 0:02:10]}  exf4 {[%clk 0:02:46]} 14. Bxf4 {[%clk 0:02:06]}  Ne5 {[%clk 0:02:46]} 15. Nd5 {[%clk 0:02:04]}  Be6 {[%clk 0:02:46]} 16. b3 {[%clk 0:01:48]}  O-O {[%clk 0:02:29]} 17. Be3 {[%clk 0:01:42]}  Bxd5 {[%clk 0:02:24]} 18. Qxd5 {[%clk 0:01:35]}  b5 {[%clk 0:02:24]} 19. Rad1 {[%clk 0:01:25]}  Rc8 {[%clk 0:02:24]} 20. Rf2 {[%clk 0:01:25]}  Bg5 {[%clk 0:02:13]} 21. Bd4 {[%clk 0:01:03]}  Nc6 {[%clk 0:01:51]} 22. Kh1 {[%clk 0:00:31]}  Nxd4 {[%clk 0:01:50]} 23. Qxd4 {[%clk 0:00:31]}  Qe7 {[%clk 0:01:51]} 24. Qxd6 {[%clk 0:00:27]}  Rfd8 {[%clk 0:01:48]} 0-1


[Site "https://www.chess.com"]

[Event "Titled Tuesday Blitz August 23 Early 2022"]
[White "Machidon, Cristi"]
[Black "Drygalov, Sergey"]
[WhiteFideId "13904590"]
[BlackFideId "24171743"]
[WhiteElo "2312"]
[BlackElo "2523"]
[Result "1-0"]
[Round "02"]
[TimeControl "180+1"]
[Date "2022.08.23"]
[WhiteClock "0:00:14"]
[BlackClock "0:00:10"]

1. d4 {[%clk 0:03:00]}  Nf6 {[%clk 0:02:59]} 2. c4 {[%clk 0:03:00]}  e6 {[%clk 0:02:59]} 3. Nc3 {[%clk 0:03:00]}  Bb4 {[%clk 0:02:59]} 4. Bd2 {[%clk 0:03:01]}  O-O {[%clk 0:02:58]} 5. e3 {[%clk 0:03:01]}  c5 {[%clk 0:02:55]} 6. Nf3 {[%clk 0:03:00]}  cxd4 {[%clk 0:02:55]} 7. exd4 {[%clk 0:03:01]}  d5 {[%clk 0:02:55]} 8. Rc1 {[%clk 0:02:56]}  b6 {[%clk 0:02:55]} 9. cxd5 {[%clk 0:02:48]}  Bxc3 {[%clk 0:02:34]} 10. bxc3 {[%clk 0:02:46]}  exd5 {[%clk 0:02:34]} 11. Ne5 {[%clk 0:02:44]}  Ne4 {[%clk 0:02:29]} 12. Be3 {[%clk 0:02:38]}  Nd7 {[%clk 0:02:24]} 13. Bd3 {[%clk 0:02:15]}  Qe7 {[%clk 0:02:19]} 14. Nxd7 {[%clk 0:02:12]}  Bxd7 {[%clk 0:02:19]} 15. O-O {[%clk 0:02:11]}  b5 {[%clk 0:02:17]} 16. Qb3 {[%clk 0:02:10]}  Qd6 {[%clk 0:02:10]} 17. Rfd1 {[%clk 0:01:39]}  Rfe8 {[%clk 0:02:06]} 18. f3 {[%clk 0:01:24]}  Ng3 {[%clk 0:01:43]} 19. Bf2 {[%clk 0:01:20]}  Ne2+ {[%clk 0:01:43]} 20. Bxe2 {[%clk 0:01:20]}  Rxe2 {[%clk 0:01:44]} 21. Re1 {[%clk 0:01:18]}  Rae8 {[%clk 0:01:42]} 22. Rxe2 {[%clk 0:01:18]}  Rxe2 {[%clk 0:01:43]} 23. Re1 {[%clk 0:01:19]}  Rxe1+ {[%clk 0:01:24]} 24. Bxe1 {[%clk 0:01:20]}  a5 {[%clk 0:01:23]} 25. Bg3 {[%clk 0:01:15]}  Qe6 {[%clk 0:01:20]} 26. Qa3 {[%clk 0:01:05]}  h5 {[%clk 0:01:10]} 27. h3 {[%clk 0:01:02]}  a4 {[%clk 0:00:44]} 28. Qd6 {[%clk 0:00:59]}  Qe3+ {[%clk 0:00:43]} 29. Kh2 {[%clk 0:00:58]}  Qe8 {[%clk 0:00:18]} 30. a3 {[%clk 0:00:56]}  Be6 {[%clk 0:00:15]} 31. Qb8 {[%clk 0:00:53]}  Qxb8 {[%clk 0:00:15]} 32. Bxb8 {[%clk 0:00:52]}  f6 {[%clk 0:00:16]} 33. g4 {[%clk 0:00:50]}  Kf7 {[%clk 0:00:16]} 34. Kg3 {[%clk 0:00:49]}  Kg6 {[%clk 0:00:17]} 35. f4 {[%clk 0:00:49]}  Bd7 {[%clk 0:00:15]} 36. f5+ {[%clk 0:00:47]}  Kf7 {[%clk 0:00:16]} 37. Kf4 {[%clk 0:00:47]}  g5+ {[%clk 0:00:15]} 38. Kf3 {[%clk 0:00:40]}  Ke7 {[%clk 0:00:15]} 39. Bg3 {[%clk 0:00:37]}  Be8 {[%clk 0:00:15]} 40. Bc7 {[%clk 0:00:36]}  Kd7 {[%clk 0:00:15]} 41. Ba5 {[%clk 0:00:36]}  Kc6 {[%clk 0:00:14]} 42. Bd8 {[%clk 0:00:34]}  hxg4+ {[%clk 0:00:08]} 43. hxg4 {[%clk 0:00:33]}  b4 {[%clk 0:00:08]} 44. cxb4 {[%clk 0:00:34]}  Kb5 {[%clk 0:00:09]} 45. Bxf6 {[%clk 0:00:33]}  Kc4 {[%clk 0:00:09]} 46. Bxg5 {[%clk 0:00:28]}  Kb3 {[%clk 0:00:09]} 47. Be7 {[%clk 0:00:19]}  Kxa3 {[%clk 0:00:09]} 48. b5+ {[%clk 0:00:19]}  Kb2 {[%clk 0:00:08]} 49. b6 {[%clk 0:00:19]}  Bc6 {[%clk 0:00:07]} 50. f6 {[%clk 0:00:18]}  a3 {[%clk 0:00:06]} 51. Bxa3+ {[%clk 0:00:18]}  Kxa3 {[%clk 0:00:07]} 52. f7 {[%clk 0:00:19]}  Kb3 {[%clk 0:00:07]} 53. f8=Q {[%clk 0:00:20]}  Kc3 {[%clk 0:00:08]} 54. Qc5+ {[%clk 0:00:19]}  Kd3 {[%clk 0:00:07]} 55. Qxc6 {[%clk 0:00:19]}  Kd2 {[%clk 0:00:08]} 56. b7 {[%clk 0:00:20]}  Kd3 {[%clk 0:00:08]} 57. b8=Q {[%clk 0:00:19]}  Kd2 {[%clk 0:00:09]} 58. Qb4+ {[%clk 0:00:14]}  Kd3 {[%clk 0:00:10]} 59. Qcc3# {[%clk 0:00:14]} 1-0


[Site "https://www.chess.com"]

[Event "Titled Tuesday Blitz August 23 Early 2022"]
[White "Mekhitarian, Krikor Sevag"]
[Black "Hardaway, Brewington"]
[WhiteFideId "2107660"]
[BlackFideId "30941849"]
[WhiteElo "2603"]
[BlackElo "1813"]
[Result "1/2-1/2"]
[Round "02"]
[TimeControl "180+1"]
[Date "2022.08.23"]
[WhiteClock "0:00:05"]
[BlackClock "0:00:10"]

1. e4 {[%clk 0:03:00]}  c5 {[%clk 0:02:59]} 2. Nf3 {[%clk 0:03:00]}  e6 {[%clk 0:02:59]} 3. d4 {[%clk 0:02:56]}  cxd4 {[%clk 0:03:00]} 4. Nxd4 {[%clk 0:02:56]}  a6 {[%clk 0:03:00]} 5. Bd3 {[%clk 0:02:55]}  Qc7 {[%clk 0:02:59]} 6. O-O {[%clk 0:02:55]}  Nf6 {[%clk 0:02:58]} 7. Qe2 {[%clk 0:02:55]}  Bc5 {[%clk 0:02:58]} 8. Nb3 {[%clk 0:02:54]}  Ba7 {[%clk 0:02:57]} 9. Be3 {[%clk 0:02:49]}  Nc6 {[%clk 0:02:54]} 10. Nc3 {[%clk 0:02:36]}  O-O {[%clk 0:02:36]} 11. Kh1 {[%clk 0:02:29]}  b5 {[%clk 0:02:28]} 12. f4 {[%clk 0:02:29]}  Nb4 {[%clk 0:02:24]} 13. Bxa7 {[%clk 0:02:22]}  Rxa7 {[%clk 0:02:22]} 14. a3 {[%clk 0:01:50]}  Nxd3 {[%clk 0:02:21]} 15. cxd3 {[%clk 0:01:51]}  d6 {[%clk 0:02:03]} 16. Rac1 {[%clk 0:01:49]}  Qe7 {[%clk 0:02:02]} 17. Na5 {[%clk 0:01:42]}  Rc7 {[%clk 0:02:00]} 18. Qe3 {[%clk 0:01:40]}  Rc5 {[%clk 0:01:38]} 19. b4 {[%clk 0:01:38]}  Rh5 {[%clk 0:01:38]} 20. h3 {[%clk 0:01:37]}  Rh6 {[%clk 0:01:06]} 21. Ne2 {[%clk 0:01:35]}  e5 {[%clk 0:01:00]} 22. f5 {[%clk 0:01:23]}  d5 {[%clk 0:01:00]} 23. Qf3 {[%clk 0:01:16]}  Bb7 {[%clk 0:00:58]} 24. Ng3 {[%clk 0:01:16]}  Ba8 {[%clk 0:00:54]} 25. Rfe1 {[%clk 0:01:15]}  Rh4 {[%clk 0:00:53]} 26. Rc5 {[%clk 0:01:09]}  Rf4 {[%clk 0:00:50]} 27. Qe3 {[%clk 0:00:41]}  dxe4 {[%clk 0:00:49]} 28. Kh2 {[%clk 0:00:35]}  Rh4 {[%clk 0:00:45]} 29. Kg1 {[%clk 0:00:34]}  Qd7 {[%clk 0:00:36]} 30. dxe4 {[%clk 0:00:29]}  Nxe4 {[%clk 0:00:28]} 31. Rxe5 {[%clk 0:00:29]}  Nxg3 {[%clk 0:00:19]} 32. Qxg3 {[%clk 0:00:29]}  Rh6 {[%clk 0:00:20]} 33. Kh2 {[%clk 0:00:22]}  Rf6 {[%clk 0:00:20]} 34. Qf4 {[%clk 0:00:22]}  h6 {[%clk 0:00:20]} 35. R1e2 {[%clk 0:00:22]}  Qd3 {[%clk 0:00:20]} 36. R5e3 {[%clk 0:00:19]}  Qd5 {[%clk 0:00:20]} 37. Qe5 {[%clk 0:00:16]}  Rxf5 {[%clk 0:00:19]} 38. Qxd5 {[%clk 0:00:16]}  Bxd5 {[%clk 0:00:19]} 39. Re5 {[%clk 0:00:13]}  Rxe5 {[%clk 0:00:18]} 40. Rxe5 {[%clk 0:00:14]}  Be6 {[%clk 0:00:17]} 41. Nc6 {[%clk 0:00:14]}  Re8 {[%clk 0:00:13]} 42. Nd4 {[%clk 0:00:14]}  Bd7 {[%clk 0:00:11]} 43. Rd5 {[%clk 0:00:14]}  Re7 {[%clk 0:00:11]} 44. Rd6 {[%clk 0:00:15]}  g6 {[%clk 0:00:09]} 45. Rxa6 {[%clk 0:00:15]}  Kg7 {[%clk 0:00:09]} 46. Rd6 {[%clk 0:00:15]}  Be8 {[%clk 0:00:09]} 47. Rd5 {[%clk 0:00:15]}  Ra7 {[%clk 0:00:09]} 48. Nxb5 {[%clk 0:00:09]}  Bxb5 {[%clk 0:00:10]} 49. Rxb5 {[%clk 0:00:10]}  Rxa3 {[%clk 0:00:10]} 50. Rd5 {[%clk 0:00:09]}  Rb3 {[%clk 0:00:11]} 51. Rd4 {[%clk 0:00:10]}  f5 {[%clk 0:00:11]} 52. h4 {[%clk 0:00:10]}  Kf6 {[%clk 0:00:11]} 53. Rd6+ {[%clk 0:00:10]}  Kf7 {[%clk 0:00:09]} 54. Rb6 {[%clk 0:00:10]}  g5 {[%clk 0:00:09]} 55. h5 {[%clk 0:00:10]}  Kg7 {[%clk 0:00:10]} 56. Rg6+ {[%clk 0:00:10]}  Kh7 {[%clk 0:00:10]} 57. Rb6 {[%clk 0:00:11]}  Kg7 {[%clk 0:00:10]} 58. g3 {[%clk 0:00:11]}  f4 {[%clk 0:00:09]} 59. gxf4 {[%clk 0:00:11]}  gxf4 {[%clk 0:00:10]} 60. Kg2 {[%clk 0:00:12]}  Kh7 {[%clk 0:00:11]} 61. Kf2 {[%clk 0:00:12]}  Kg7 {[%clk 0:00:11]} 62. b5 {[%clk 0:00:12]}  Kg8 {[%clk 0:00:11]} 63. Rb7 {[%clk 0:00:13]}  Kh8 {[%clk 0:00:09]} 64. b6 {[%clk 0:00:13]}  Kg8 {[%clk 0:00:09]} 65. Ke2 {[%clk 0:00:13]}  Kh8 {[%clk 0:00:09]} 66. Kd2 {[%clk 0:00:13]}  Kg8 {[%clk 0:00:09]} 67. Ke2 {[%clk 0:00:09]}  Kh8 {[%clk 0:00:09]} 68. Kf2 {[%clk 0:00:09]}  Kg8 {[%clk 0:00:09]} 69. Ke1 {[%clk 0:00:08]}  Kh8 {[%clk 0:00:09]} 70. Kd1 {[%clk 0:00:08]}  f3 {[%clk 0:00:09]} 71. Ke1 {[%clk 0:00:08]}  Kg8 {[%clk 0:00:09]} 72. Kf2 {[%clk 0:00:09]}  Kh8 {[%clk 0:00:10]} 73. Kg3 {[%clk 0:00:09]}  Kg8 {[%clk 0:00:10]} 74. Kf2 {[%clk 0:00:05]}  Kh8 {[%clk 0:00:10]} 75. Kf1 {[%clk 0:00:04]}  Kg8 {[%clk 0:00:10]} 76. Kf2 {[%clk 0:00:05]} 1/2-1/2


[Site "https://www.chess.com"]

[Event "Titled Tuesday Blitz August 23 Early 2022"]
[White "Nakamura, Hikaru"]
[Black "Borgaonkar Akshay"]
[WhiteFideId "2016192"]
[BlackFideId "25639110"]
[WhiteElo "2850"]
[BlackElo "1755"]
[Result "1-0"]
[Round "02"]
[TimeControl "180+1"]
[Date "2022.08.23"]
[WhiteClock "0:00:49"]
[BlackClock "0:00:06"]

1. g3 {[%clk 0:03:00]}  Nf6 {[%clk 0:02:57]} 2. Bg2 {[%clk 0:03:00]}  g6 {[%clk 0:02:57]} 3. d3 {[%clk 0:03:00]}  Bg7 {[%clk 0:02:58]} 4. Bd2 {[%clk 0:03:00]}  O-O {[%clk 0:02:58]} 5. Qc1 {[%clk 0:03:01]}  d5 {[%clk 0:02:49]} 6. Bh6 {[%clk 0:03:00]}  e5 {[%clk 0:02:46]} 7. Nc3 {[%clk 0:02:59]}  d4 {[%clk 0:02:43]} 8. Ne4 {[%clk 0:02:59]}  Nxe4 {[%clk 0:02:42]} 9. Bxe4 {[%clk 0:02:58]}  f5 {[%clk 0:02:42]} 10. Bg2 {[%clk 0:02:58]}  Qe7 {[%clk 0:02:28]} 11. Bxg7 {[%clk 0:02:57]}  Kxg7 {[%clk 0:02:28]} 12. c3 {[%clk 0:02:57]}  c5 {[%clk 0:02:27]} 13. cxd4 {[%clk 0:02:54]}  cxd4 {[%clk 0:02:26]} 14. Nf3 {[%clk 0:02:54]}  Nc6 {[%clk 0:02:26]} 15. O-O {[%clk 0:02:54]}  Be6 {[%clk 0:02:23]} 16. e3 {[%clk 0:02:54]}  Bd5 {[%clk 0:02:22]} 17. Re1 {[%clk 0:02:53]}  Qd6 {[%clk 0:02:15]} 18. Qd2 {[%clk 0:02:41]}  Rad8 {[%clk 0:02:06]} 19. Rac1 {[%clk 0:02:30]}  dxe3 {[%clk 0:02:06]} 20. Qxe3 {[%clk 0:02:28]}  f4 {[%clk 0:02:01]} 21. gxf4 {[%clk 0:02:25]}  Rxf4 {[%clk 0:01:54]} 22. Rxc6 {[%clk 0:02:10]}  bxc6 {[%clk 0:01:44]} 23. Nxe5 {[%clk 0:02:09]}  Rff8 {[%clk 0:01:36]} 24. Qxa7+ {[%clk 0:02:07]}  Kg8 {[%clk 0:01:34]} 25. Qe3 {[%clk 0:01:58]}  Bxg2 {[%clk 0:01:32]} 26. Kxg2 {[%clk 0:01:59]}  Qd5+ {[%clk 0:01:30]} 27. Qe4 {[%clk 0:02:00]}  Qxe4+ {[%clk 0:01:26]} 28. Rxe4 {[%clk 0:01:57]}  Rfe8 {[%clk 0:01:22]} 29. Re3 {[%clk 0:01:33]}  Rd5 {[%clk 0:01:15]} 30. f4 {[%clk 0:01:33]}  g5 {[%clk 0:01:12]} 31. Kg3 {[%clk 0:01:33]}  gxf4+ {[%clk 0:01:11]} 32. Kxf4 {[%clk 0:01:33]}  Rf8+ {[%clk 0:00:58]} 33. Ke4 {[%clk 0:01:32]}  Re8 {[%clk 0:00:59]} 34. d4 {[%clk 0:01:31]}  h6 {[%clk 0:00:55]} 35. b4 {[%clk 0:01:30]}  Rb5 {[%clk 0:00:49]} 36. a3 {[%clk 0:01:29]}  Kh7 {[%clk 0:00:45]} 37. Rc3 {[%clk 0:01:28]}  Rb6 {[%clk 0:00:39]} 38. Kd3 {[%clk 0:01:22]}  Rb7 {[%clk 0:00:23]} 39. Nxc6 {[%clk 0:01:19]}  Rg7 {[%clk 0:00:21]} 40. Rc2 {[%clk 0:01:13]}  Ra8 {[%clk 0:00:12]} 41. Ra2 {[%clk 0:01:13]}  Rg1 {[%clk 0:00:07]} 42. b5 {[%clk 0:01:11]}  Rb1 {[%clk 0:00:07]} 43. a4 {[%clk 0:01:01]}  Rxb5 {[%clk 0:00:06]} 44. axb5 {[%clk 0:01:02]}  Rxa2 {[%clk 0:00:07]} 45. d5 {[%clk 0:01:03]}  Rb2 {[%clk 0:00:04]} 46. Kc4 {[%clk 0:01:01]}  Rc2+ {[%clk 0:00:04]} 47. Kb4 {[%clk 0:01:00]}  Rd2 {[%clk 0:00:03]} 48. b6 {[%clk 0:00:55]}  Rxd5 {[%clk 0:00:02]} 49. b7 {[%clk 0:00:55]}  Rd2 {[%clk 0:00:02]} 50. Kb5 {[%clk 0:00:55]}  Rb2+ {[%clk 0:00:02]} 51. Nb4 {[%clk 0:00:55]}  Rxh2 {[%clk 0:00:01]} 52. b8=Q {[%clk 0:00:54]}  Rh5+ {[%clk 0:00:02]} 53. Kc6 {[%clk 0:00:54]}  Rg5 {[%clk 0:00:02]} 54. Nd5 {[%clk 0:00:55]}  Rg6+ {[%clk 0:00:03]} 55. Kc5 {[%clk 0:00:55]}  h5 {[%clk 0:00:04]} 56. Qf4 {[%clk 0:00:50]}  Rg4 {[%clk 0:00:03]} 57. Nf6+ {[%clk 0:00:45]}  Kh8 {[%clk 0:00:01]} 58. Nxg4 {[%clk 0:00:46]}  h4 {[%clk 0:00:02]} 59. Nh2 {[%clk 0:00:46]}  h3 {[%clk 0:00:03]} 60. Qg5 {[%clk 0:00:45]}  Kh7 {[%clk 0:00:03]} 61. Kd5 {[%clk 0:00:46]}  Kh8 {[%clk 0:00:04]} 62. Ke6 {[%clk 0:00:47]}  Kh7 {[%clk 0:00:05]} 63. Kf6 {[%clk 0:00:48]}  Kh8 {[%clk 0:00:06]} 64. Qg7# {[%clk 0:00:49]} 1-0


[Site "https://www.chess.com"]

[Event "Titled Tuesday Blitz August 23 Early 2022"]
[White "Puranik, Abhimanyu"]
[Black "Solon, Nathan"]
[WhiteFideId "5061245"]
[BlackFideId "2017229"]
[WhiteElo "2520"]
[BlackElo "2636"]
[Result "1/2-1/2"]
[Round "02"]
[TimeControl "180+1"]
[Date "2022.08.23"]
[WhiteClock "0:00:22"]
[BlackClock "0:00:46"]

1. c4 {[%clk 0:03:00]}  e6 {[%clk 0:02:59]} 2. Nf3 {[%clk 0:03:00]}  d5 {[%clk 0:03:00]} 3. e3 {[%clk 0:03:01]}  Nf6 {[%clk 0:03:00]} 4. b3 {[%clk 0:03:01]}  Nbd7 {[%clk 0:02:57]} 5. Bb2 {[%clk 0:03:01]}  Bd6 {[%clk 0:02:57]} 6. Be2 {[%clk 0:02:55]}  O-O {[%clk 0:02:57]} 7. Nc3 {[%clk 0:02:53]}  a6 {[%clk 0:02:56]} 8. O-O {[%clk 0:02:52]}  b6 {[%clk 0:02:54]} 9. cxd5 {[%clk 0:02:46]}  exd5 {[%clk 0:02:53]} 10. Nd4 {[%clk 0:02:38]}  Nc5 {[%clk 0:02:33]} 11. Qc2 {[%clk 0:02:32]}  g6 {[%clk 0:02:25]} 12. Rac1 {[%clk 0:02:26]}  Re8 {[%clk 0:02:14]} 13. h3 {[%clk 0:01:55]}  Bb7 {[%clk 0:02:13]} 14. f4 {[%clk 0:01:50]}  Nce4 {[%clk 0:02:10]} 15. Nxe4 {[%clk 0:01:49]}  Nxe4 {[%clk 0:02:08]} 16. Bf3 {[%clk 0:01:33]}  c5 {[%clk 0:01:58]} 17. Ne2 {[%clk 0:01:33]}  Qh4 {[%clk 0:01:44]} 18. d3 {[%clk 0:01:31]}  Ng3 {[%clk 0:01:28]} 19. Nxg3 {[%clk 0:01:28]}  Qxg3 {[%clk 0:01:29]} 20. Qf2 {[%clk 0:00:57]}  Qxf2+ {[%clk 0:01:29]} 21. Kxf2 {[%clk 0:00:58]}  Re7 {[%clk 0:01:30]} 22. Rfe1 {[%clk 0:00:56]}  Rae8 {[%clk 0:01:30]} 23. d4 {[%clk 0:00:55]}  f6 {[%clk 0:01:12]} 24. dxc5 {[%clk 0:00:53]}  Bxc5 {[%clk 0:01:13]} 25. Bd4 {[%clk 0:00:44]}  Bxd4 {[%clk 0:01:10]} 26. exd4 {[%clk 0:00:45]}  Rxe1 {[%clk 0:01:10]} 27. Rxe1 {[%clk 0:00:45]}  Rxe1 {[%clk 0:01:10]} 28. Kxe1 {[%clk 0:00:46]}  Kf7 {[%clk 0:01:09]} 29. g4 {[%clk 0:00:44]}  g5 {[%clk 0:01:09]} 30. f5 {[%clk 0:00:41]}  Ke7 {[%clk 0:01:09]} 31. Kd2 {[%clk 0:00:41]}  Kd6 {[%clk 0:01:08]} 32. Kc3 {[%clk 0:00:41]}  a5 {[%clk 0:01:09]} 33. b4 {[%clk 0:00:41]}  Ba6 {[%clk 0:01:07]} 34. Bg2 {[%clk 0:00:34]}  Bc4 {[%clk 0:01:07]} 35. a3 {[%clk 0:00:34]}  h6 {[%clk 0:01:06]} 36. Kb2 {[%clk 0:00:34]}  Kc6 {[%clk 0:01:05]} 37. Kc3 {[%clk 0:00:33]}  Kb5 {[%clk 0:01:05]} 38. bxa5 {[%clk 0:00:33]}  Kxa5 {[%clk 0:00:58]} 39. Kb2 {[%clk 0:00:29]}  Ka4 {[%clk 0:00:57]} 40. Bf3 {[%clk 0:00:29]}  Ka5 {[%clk 0:00:55]} 41. Kc3 {[%clk 0:00:28]}  Ka4 {[%clk 0:00:49]} 42. Kb2 {[%clk 0:00:27]}  Ka5 {[%clk 0:00:49]} 43. Kc3 {[%clk 0:00:23]}  Ka4 {[%clk 0:00:46]} 44. Kb2 {[%clk 0:00:22]} 1/2-1/2


[Site "https://www.chess.com"]

[Event "Titled Tuesday Blitz August 23 Early 2022"]
[White "Sarana, Alexey"]
[Black "Agibileg, Uurtsaikh"]
[WhiteFideId "24133795"]
[BlackFideId "4901606"]
[WhiteElo "2666"]
[BlackElo "2205"]
[Result "1-0"]
[Round "02"]
[TimeControl "180+1"]
[Date "2022.08.23"]
[WhiteClock "0:01:10"]
[BlackClock "0:00:12"]

1. d4 {[%clk 0:03:00]}  Nf6 {[%clk 0:02:59]} 2. c4 {[%clk 0:02:59]}  g6 {[%clk 0:03:00]} 3. Nc3 {[%clk 0:03:00]}  Bg7 {[%clk 0:03:00]} 4. g3 {[%clk 0:02:59]}  O-O {[%clk 0:02:59]} 5. Bg2 {[%clk 0:02:59]}  c6 {[%clk 0:02:49]} 6. e4 {[%clk 0:02:59]}  d6 {[%clk 0:02:41]} 7. Nf3 {[%clk 0:02:58]}  Nfd7 {[%clk 0:02:38]} 8. O-O {[%clk 0:02:58]}  c5 {[%clk 0:02:38]} 9. Be3 {[%clk 0:02:52]}  Nc6 {[%clk 0:02:36]} 10. h3 {[%clk 0:02:52]}  cxd4 {[%clk 0:02:33]} 11. Nxd4 {[%clk 0:02:53]}  Nxd4 {[%clk 0:02:27]} 12. Bxd4 {[%clk 0:02:54]}  Bxd4 {[%clk 0:02:27]} 13. Qxd4 {[%clk 0:02:54]}  Qb6 {[%clk 0:02:27]} 14. Qd2 {[%clk 0:02:38]}  Nf6 {[%clk 0:02:27]} 15. b3 {[%clk 0:02:36]}  Be6 {[%clk 0:02:17]} 16. Kh2 {[%clk 0:02:34]}  a6 {[%clk 0:02:16]} 17. f4 {[%clk 0:02:24]}  Qc5 {[%clk 0:02:16]} 18. Rac1 {[%clk 0:02:13]}  Rfd8 {[%clk 0:01:28]} 19. g4 {[%clk 0:02:11]}  Bd7 {[%clk 0:01:26]} 20. g5 {[%clk 0:02:02]}  Ne8 {[%clk 0:01:17]} 21. Nd5 {[%clk 0:01:57]}  e6 {[%clk 0:01:17]} 22. Ne3 {[%clk 0:01:53]}  Bc6 {[%clk 0:01:08]} 23. Ng4 {[%clk 0:01:52]}  Rac8 {[%clk 0:01:01]} 24. b4 {[%clk 0:01:42]}  Qb6 {[%clk 0:00:57]} 25. Qb2 {[%clk 0:01:40]}  Qc7 {[%clk 0:00:29]} 26. Nh6+ {[%clk 0:01:37]}  Kf8 {[%clk 0:00:29]} 27. b5 {[%clk 0:01:32]}  Bd7 {[%clk 0:00:17]} 28. Qh8+ {[%clk 0:01:29]}  Ke7 {[%clk 0:00:17]} 29. Ng8+ {[%clk 0:01:14]}  Kf8 {[%clk 0:00:16]} 30. Nf6+ {[%clk 0:01:15]}  Ke7 {[%clk 0:00:16]} 31. Nxh7 {[%clk 0:01:15]}  Bxb5 {[%clk 0:00:12]} 32. Qf8+ {[%clk 0:01:10]}  Kd7 {[%clk 0:00:12]} 33. Qxf7+ {[%clk 0:01:10]} 1-0


[Site "https://www.chess.com"]

[Event "Titled Tuesday Blitz August 23 Early 2022"]
[White "Tologon tegin, Semetei"]
[Black "Paravyan, David"]
[WhiteFideId "13800574"]
[BlackFideId "4194985"]
[WhiteElo "2174"]
[BlackElo "2569"]
[Result "0-1"]
[Round "02"]
[TimeControl "180+1"]
[Date "2022.08.23"]
[WhiteClock "0:00:04"]
[BlackClock "0:00:08"]

1. g3 {[%clk 0:03:00]}  Nf6 {[%clk 0:02:57]} 2. Bg2 {[%clk 0:02:59]}  e5 {[%clk 0:02:57]} 3. d3 {[%clk 0:02:58]}  d5 {[%clk 0:02:58]} 4. Nf3 {[%clk 0:02:58]}  Bd6 {[%clk 0:02:57]} 5. c4 {[%clk 0:02:57]}  dxc4 {[%clk 0:02:56]} 6. dxc4 {[%clk 0:02:56]}  O-O {[%clk 0:02:57]} 7. O-O {[%clk 0:02:55]}  h6 {[%clk 0:02:57]} 8. Nc3 {[%clk 0:02:54]}  Nc6 {[%clk 0:02:56]} 9. Qc2 {[%clk 0:02:50]}  Be6 {[%clk 0:02:46]} 10. Nb5 {[%clk 0:02:40]}  Bc5 {[%clk 0:02:34]} 11. b3 {[%clk 0:02:26]}  a6 {[%clk 0:02:31]} 12. Nc3 {[%clk 0:02:26]}  Qe7 {[%clk 0:02:17]} 13. e3 {[%clk 0:02:23]}  Rad8 {[%clk 0:02:10]} 14. a3 {[%clk 0:02:23]}  Ba7 {[%clk 0:01:35]} 15. Bb2 {[%clk 0:02:22]}  Rfe8 {[%clk 0:01:34]} 16. h3 {[%clk 0:02:19]}  Qd7 {[%clk 0:01:28]} 17. Rad1 {[%clk 0:02:18]}  Qc8 {[%clk 0:01:29]} 18. Kh2 {[%clk 0:02:18]}  Bf5 {[%clk 0:01:27]} 19. e4 {[%clk 0:02:14]}  Bh7 {[%clk 0:00:56]} 20. Rxd8 {[%clk 0:01:41]}  Rxd8 {[%clk 0:00:57]} 21. Qe2 {[%clk 0:01:31]}  Nd4 {[%clk 0:00:54]} 22. Nxd4 {[%clk 0:01:31]}  Bxd4 {[%clk 0:00:55]} 23. Nd5 {[%clk 0:01:28]}  Nxd5 {[%clk 0:00:37]} 24. cxd5 {[%clk 0:01:24]}  Bxb2 {[%clk 0:00:37]} 25. Qxb2 {[%clk 0:01:24]}  f6 {[%clk 0:00:26]} 26. Qc3 {[%clk 0:01:17]}  Qd7 {[%clk 0:00:21]} 27. Rc1 {[%clk 0:01:15]}  c6 {[%clk 0:00:19]} 28. dxc6 {[%clk 0:01:14]}  Qxc6 {[%clk 0:00:17]} 29. Qxc6 {[%clk 0:01:14]}  bxc6 {[%clk 0:00:18]} 30. Rxc6 {[%clk 0:00:35]}  a5 {[%clk 0:00:17]} 31. Rc5 {[%clk 0:00:26]}  Rd2 {[%clk 0:00:11]} 32. Kg1 {[%clk 0:00:23]}  Rd1+ {[%clk 0:00:11]} 33. Kh2 {[%clk 0:00:22]}  Rb1 {[%clk 0:00:12]} 34. Rxa5 {[%clk 0:00:19]}  Rxb3 {[%clk 0:00:12]} 35. f3 {[%clk 0:00:17]}  Bg6 {[%clk 0:00:10]} 36. g4 {[%clk 0:00:15]}  Bf7 {[%clk 0:00:10]} 37. Kg3 {[%clk 0:00:15]}  Bc4 {[%clk 0:00:08]} 38. a4 {[%clk 0:00:13]}  Bd3 {[%clk 0:00:06]} 39. Ra7 {[%clk 0:00:11]}  Bxe4 {[%clk 0:00:06]} 40. a5 {[%clk 0:00:10]}  Kh7 {[%clk 0:00:06]} 41. h4 {[%clk 0:00:10]}  Ra3 {[%clk 0:00:06]} 42. Kf2 {[%clk 0:00:08]}  Bd5 {[%clk 0:00:06]} 43. h5 {[%clk 0:00:07]}  Ra2+ {[%clk 0:00:06]} 44. Kg3 {[%clk 0:00:07]}  Ra3 {[%clk 0:00:06]} 45. Kf2 {[%clk 0:00:07]}  Bc4 {[%clk 0:00:06]} 46. Rc7 {[%clk 0:00:04]}  Ra2+ {[%clk 0:00:04]} 47. Kg3 {[%clk 0:00:04]}  Bd3 {[%clk 0:00:04]} 48. Rc5 {[%clk 0:00:04]}  Ra3 {[%clk 0:00:03]} 49. Kf2 {[%clk 0:00:03]}  Ra2+ {[%clk 0:00:04]} 50. Kg3 {[%clk 0:00:03]}  Ra3 {[%clk 0:00:02]} 51. Kf2 {[%clk 0:00:02]}  Ba6 {[%clk 0:00:02]} 52. Kg3 {[%clk 0:00:03]}  Ra2 {[%clk 0:00:02]} 53. Bh3 {[%clk 0:00:02]}  Ra3 {[%clk 0:00:02]} 54. g5 {[%clk 0:00:02]}  hxg5 {[%clk 0:00:02]} 55. Bf5+ {[%clk 0:00:01]}  Kh6 {[%clk 0:00:02]} 56. Bg6 {[%clk 0:00:01]}  g4 {[%clk 0:00:03]} 57. Kxg4 {[%clk 0:00:01]}  Be2 {[%clk 0:00:03]} 58. Kf5 {[%clk 0:00:02]}  Bxf3 {[%clk 0:00:03]} 59. Ke6 {[%clk 0:00:03]}  Bxh5 {[%clk 0:00:03]} 60. Bxh5 {[%clk 0:00:02]}  Kxh5 {[%clk 0:00:04]} 61. Kd6 {[%clk 0:00:02]}  Kg4 {[%clk 0:00:04]} 62. Kc6 {[%clk 0:00:03]}  e4 {[%clk 0:00:04]} 63. Kb6 {[%clk 0:00:04]}  e3 {[%clk 0:00:04]} 64. Rc7 {[%clk 0:00:05]}  g5 {[%clk 0:00:04]} 65. Re7 {[%clk 0:00:04]}  f5 {[%clk 0:00:04]} 66. a6 {[%clk 0:00:02]}  f4 {[%clk 0:00:04]} 67. a7 {[%clk 0:00:02]}  Kf3 {[%clk 0:00:05]} 68. Kb7 {[%clk 0:00:02]}  Rxa7+ {[%clk 0:00:05]} 69. Kxa7 {[%clk 0:00:02]}  g4 {[%clk 0:00:06]} 70. Kb6 {[%clk 0:00:03]}  g3 {[%clk 0:00:07]} 71. Kc5 {[%clk 0:00:03]}  g2 {[%clk 0:00:08]} 72. Rg7 {[%clk 0:00:03]}  e2 {[%clk 0:00:08]} 73. Kd4 {[%clk 0:00:04]}  e1=Q {[%clk 0:00:08]} 0-1


[Site "https://www.chess.com"]